[Event "11th Asrian Memorial 2018"]
[Site "Jermuk"]
[Date "2018.06.29"]
[Round "9"]
[White "Tutisani, Noe"]
[Black "Stupak, Kirill"]
[Result "1/2-1/2"]
[ECO "A05"]
[WhiteElo "2469"]
[BlackElo "2564"]
[Annotator "ChessBase"]
[PlyCount "72"]
[EventDate "2018.06.21"]
[EventCountry "ARM"]
[SourceTitle "playchess.com"]
[Source "ChessBase"]
[SourceQuality "1"]
[TimeControl "40/5400+30:1800+30"]

1. Nf3 {[%emt 0:00:00]} Nf6 {[%emt 0:06:56]} 2. g3 {[%emt 0:00:00]} c5 {[%emt 0:00:18]} 3. Bg2 {[%emt 0:00:00]} d5 {[%emt 0:00:15]} 4. O-O {[%emt 0:00:02]} g6 {[%emt 0:00:04]} 5. c3 {[%emt 0:00:29]} Bg7 {[%emt 0:00:22]} 6. d4 {[%emt 0:00:06]} Qb6 {[%emt 0:00:06]} 7. Qb3 {[%emt 0:01:01]} O-O {[%emt 0:00:50]} 8. Be3 {[%emt 0:00:46]} c4 {[%emt 0:03:49]} 9. Qa3 {[%emt 0:00:34]} Nc6 {[%emt 0:00:22]} 10. b3 {[%emt 0:00:04]} cxb3 {[%emt 0:09:10]} 11. axb3 {[%emt 0:00:15]} Ng4 {[%emt 0:02:36]} 12. Bf4 {[%emt 0:05:18]} Re8 {[%emt 0:00:47]} 13. Nbd2 {[%emt 0:06:35]} h6 {[%emt 0:00:54]} 14. e4 {[%emt 0:05:08]} dxe4 {[%emt 0:05:58]} 15. Nxe4 {[%emt 0:00:10]} Bf5 {[%emt 0:06:11]} 16. Nfd2 {[%emt 0:08:20]} Bxe4 {[%emt 0:11:24]} 17. Nxe4 {[%emt 0:02:51]} e5 {[%emt 0:05:01]} 18. dxe5 {[%emt 0:00:49]} g5 {[%emt 0:02:19]} 19. Bd2 {[%emt 0:02:12]} Rxe5 {[%emt 0:03:10]} 20. h3 {[%emt 0:00:45]} Nf6 {[%emt 0:00:57]} 21. Be3 {[%emt 0:00:57]} Qc7 {[%emt 0:00:58]} 22. Qd6 {[%emt 0:00:42]} Qd8 {[%emt 0:20:11]} 23. Qxd8+ {[%emt 0:04:03]} Rxd8 {[%emt 0:00:09]} 24. Nc5 {[%emt 0:02:00]} Re7 {[%emt 0:02:50]} 25. Rfd1 {[%emt 0:00:52]} Rc8 {[%emt 0:01:00]} 26. Ra4 {[%emt 0:08:48]} b6 {[%emt 0:00:52]} 27. Ne4 {[%emt 0:04:15]} Na5 {[%emt 0:02:14]} 28. Nd6 {[%emt 0:12:23]} Rd8 {[%emt 0:00:01]} 29. Rdd4 {[%emt 0:01:04]} Nxb3 {[%emt 0:02:13]} 30. Nf5 {[%emt 0:00:06]} Red7 {[%emt 0:00:54]} 31. Ne7+ {[%emt 0:01:04]} Kf8 {[%emt 0:01:15]} 32. Rxd7 {[%emt 0:00:12]} Rxd7 {[%emt 0:00:01]} 33. Nc6 {[%emt 0:00:09]} Rd1+ {[%emt 0:09:07]} 34. Kh2 {[%emt 0:00:05]} Ra1 {[%emt 0:00:10]} 35. Rxa1 {[%emt 0:01:06]} Nxa1 {[%emt 0:00:02]} 36. Nxa7 {[%emt 0:00:06]} Nd7 {[%emt 0:00:25]} 1/2-1/2